fUSD/lending_fUSD_20250804
["ID","MTS","AMOUNT","RATE_DAILY","PERIOD"]
[377196718,1754286632879,-1970.724621,0.00045281,2]
[377196719,1754286632905,-1535.17264067,0.00045281,2]
[377196737,1754286638486,-150.0,0.00027897,3]
[377196738,1754286638497,-284.82046823,0.00030137,3]
[377196739,1754286638509,-15.17953177,0.00030137,3]
[377196740,1754286638520,-20394.10273833,0.00045281,2]
[377196741,1754286638530,-296.151,0.00045381,73]
[377196747,1754286638688,-268.55,0.00045427,120]
[377196749,1754286638699,-1016.92240272,0.00045469,2]
[377196751,1754286638709,-500.0,0.00045489,120]
[377196753,1754286638719,-222.81565236,0.00045502,2]
[377196755,1754286638728,-849.35,0.0004557,120]
[377196757,1754286638738,-1367.55,0.00045582,120]
[377196759,1754286638747,-500.0,0.00045647,30]
[377196761,1754286638757,-1101.58,0.0004567,120]
[377196763,1754286638767,-553.03,0.00045678,30]
[377196765,1754286638777,-1000.0,0.00045704,2]
[377196767,1754286638787,-1090.68879463,0.00045721,2]
[377196770,1754286638797,-174.36,0.00045723,2]
[377196771,1754286638807,-428.43,0.0004573,2]
[377196773,1754286638816,-500.0,0.00045763,120]
[377196776,1754286638825,-1000.0,0.000458,7]
[377196778,1754286638835,-457.2201239,0.00045872,2]
[377196780,1754286638844,-185.05,0.00045936,120]
[377196782,1754286638856,-1164.45518654,0.00045973,2]
[377196784,1754286638865,-150.0,0.00046011,14]
[377196786,1754286638875,-500.0,0.00046037,120]
[377196788,1754286638884,-479.80613611,0.0004607,120]
[377196790,1754286638893,-234.9,0.00046081,2]
[377196792,1754286638904,-154.06404217,0.00046093,14]
[377196794,1754286638913,-1000.0,0.00046169,14]
[377196796,1754286638922,-359.08,0.00046178,30]
[377196798,1754286638931,-330.61,0.00046178,30]
[377196800,1754286638941,-172.46,0.00046178,30]
[377196802,1754286638951,-537.09,0.00046178,30]
[377196804,1754286638960,-359.08,0.00046178,30]
[377196806,1754286638969,-537.09,0.00046178,30]
[377196808,1754286638978,-359.08,0.00046178,30]
[377196810,1754286638988,-537.09,0.00046178,30]
[377196812,1754286638998,-1000.0,0.000462,7]
[377196814,1754286639007,-1238.22157844,0.00046225,2]
[377196816,1754286639016,-500.0,0.00046311,120]
[377196818,1754286639026,-1000.0,0.00046446,14]
[377196821,1754286639047,-1311.98797035,0.00046477,2]
[377196823,1754286639057,-500.0,0.00046497,30]
[377196825,1754286639067,-358.27452433,0.00046536,2]
[377196827,1754286639077,-500.0,0.00046585,120]
[377196829,1754286639087,-166.11,0.0004665,2]
[377196831,1754286639097,-150.0,0.00046707,14]
[377196833,1754286639106,-1025.83590313,0.00046718,14]
[377196835,1754286639116,-1385.75436226,0.00046729,2]
[377196837,1754286639127,-150.0,0.00046787,7]
[377196839,1754286639136,-150.0,0.00046835,14]
[377196841,1754286639146,-500.0,0.00046859,120]
[377196843,1754286639160,-150.0,0.00046889,14]
[377196845,1754286639170,-150.0,0.00046898,14]
[377196847,1754286639180,-666.0,0.00046899,120]
[377196849,1754286639190,-630.7462,0.0004692,2]
[377196851,1754286639201,-2104.962,0.0004692,2]
[377196853,1754286639210,-1000.0,0.00046922,14]
[377196855,1754286639220,-150.0,0.0004693,14]
[377196857,1754286639230,-150.0,0.00046936,7]
[377196859,1754286639241,-1459.52075417,0.00046982,2]
[377196861,1754286639251,-150.0,0.00046989,12]
[377196863,1754286639260,-150.0,0.00046994,14]
[377196865,1754286639271,-150.0,0.00046994,7]
[377196867,1754286639281,-999.0,0.00046999,120]
[377196869,1754286639291,-3800.0,0.00047,30]
[377196871,1754286639302,-714.9344,0.00047019,2]
[377196873,1754286639312,-1251.0,0.0004702,2]
[377196876,1754286639322,-955.0,0.0004702,2]
[377196878,1754286639332,-2468.976,0.0004702,2]
[377196880,1754286639342,-1169.0,0.0004702,2]
[377196882,1754286639356,-3800.239,0.0004702,2]
[377196884,1754286639367,-4137.0,0.0004702,2]
[377196886,1754286639376,-6070.0,0.0004702,2]
[377196888,1754286639386,-1361.93188,0.0004702,35]
[377196890,1754286639396,-666.0,0.00047036,120]
[377196892,1754286639407,-516.0,0.00047074,16]
[377196895,1754286639417,-150.0,0.00047088,7]
[377196897,1754286639427,-150.0,0.00047107,7]
[377196899,1754286639437,-500.0,0.00047133,120]
[377196901,1754286639447,-150.0,0.0004715,14]
[377196903,1754286639456,-268.55,0.00047158,120]
[377196905,1754286639466,-1000.0,0.0004716,14]
[377196907,1754286639476,-666.0,0.00047173,120]
[377196909,1754286639486,-1000.0,0.00047176,14]
[377196911,1754286639496,-150.0,0.00047192,14]
[377196913,1754286639507,-300.0,0.000472,17]
[377196915,1754286639517,-150.0,0.00047219,14]
[377196917,1754286639527,-1533.28714607,0.00047234,2]
[377196919,1754286639537,-150.0,0.00047271,3]
[377196921,1754286639547,-271.37,0.00047281,14]
[377196923,1754286639558,-700.0,0.000473,17]
[377196925,1754286639568,-150.0,0.0004731,7]
[377196927,1754286639578,-666.0,0.0004731,120]
[377196929,1754286639588,-1077.2237,0.0004731,2]
[377196931,1754286639598,-1000.0,0.00047349,14]
[377196933,1754286639608,-1100.0,0.000474,17]
[377196935,1754286639618,-500.0,0.00047407,120]
[377196937,1754286639628,-150.0,0.00047425,14]
[377196939,1754286639638,-150.0,0.00047428,14]
[377196941,1754286639648,-666.0,0.00047447,120]
[377196943,1754286639658,-6686.02057425,0.00047448,120]
[377196945,1754286639668,-178.53786062,0.0004745,120]
[377196947,1754286639678,-150.0,0.00047476,7]
[377196949,1754286639688,-1000.0,0.00047486,14]
[377196952,1754286639698,-1607.05353798,0.00047486,2]
[377196954,1754286639709,-150.0,0.00047498,61]
[377196956,1754286639719,-1400.0,0.000475,17]
[377196958,1754286639729,-150.0,0.00047503,7]
[377196960,1754286639739,-151.22011633,0.00047538,7]
[377196961,1754286639748,-150.0,0.00047538,7]
[377196962,1754286639758,-150.0,0.00047551,7]
[377196963,1754286639769,-150.0,0.00047552,14]
[377196964,1754286639779,-271.37,0.00047579,14]
[377196965,1754286639793,-666.0,0.00047584,120]
[377196966,1754286639803,-1800.0,0.000476,17]
[377196967,1754286639813,-150.0,0.00047666,7]
[377196968,1754286639823,-1000.0,0.00047671,120]
[377196969,1754286639832,-1000.0,0.00047671,120]
[377196970,1754286639842,-523.70208924,0.00047671,120]
[377196971,1754286639852,-500.0,0.00047681,120]
[377196973,1754286639862,-150.0,0.00047695,7]
[377196975,1754286639872,-150.0,0.00047695,7]
[377196977,1754286639882,-150.0,0.00047698,7]
[377196979,1754286639892,-150.0,0.00047698,7]
[377196981,1754286639902,-300.0,0.000477,17]
[377196983,1754286639912,-150.0,0.000477,14]
[377196985,1754286639923,-807.66292348,0.000477,47]
[377196987,1754286639932,-150.0,0.00047702,7]
[377196989,1754286639942,-150.0,0.00047702,7]
[377196991,1754286639952,-150.0,0.00047707,7]
[377196993,1754286639962,-150.0,0.00047707,7]
[377196995,1754286639972,-150.0,0.00047714,7]
[377196997,1754286639982,-150.0,0.00047718,7]
[377196999,1754286639992,-150.0,0.00047718,7]
[377197001,1754286640002,-1000.0,0.0004772,14]
[377197004,1754286640012,-666.0,0.00047721,120]
[377197006,1754286640022,-150.0,0.00047725,7]
[377197008,1754286640032,-1000.0,0.00047726,14]
[377197010,1754286640042,-150.0,0.00047729,7]
[377197012,1754286640053,-150.0,0.00047732,7]
[377197014,1754286640063,-1000.0,0.00047733,14]
[377197016,1754286640073,-150.98241987,0.00047734,7]
[377197018,1754286640083,-150.0,0.00047735,7]
[377197020,1754286640093,-150.0,0.00047735,7]
[377197022,1754286640103,-150.0,0.00047737,7]
[377197024,1754286640113,-150.0,0.00047737,7]
[377197026,1754286640124,-1680.81992989,0.00047738,2]
[377197028,1754286640134,-150.0,0.0004774,14]
[377197030,1754286640143,-150.0,0.00047743,7]
[377197032,1754286640154,-150.0,0.00047744,7]
[377197034,1754286640166,-153.0,0.00047749,7]
[377197036,1754286640176,-150.0,0.00047749,7]
[377197038,1754286640186,-303.42652598,0.0004775,120]
[377197041,1754286640196,-150.0,0.0004775,7]
[377197043,1754286640206,-150.0,0.0004775,14]
[377197045,1754286640216,-1000.0,0.0004775,2]
[377197048,1754286640226,-1094.8994,0.0004775,2]
[377197052,1754286640240,-1000.0,0.0004775,2]
[377197054,1754286640250,-1000.0,0.0004775,2]
[377197056,1754286640260,-1000.0,0.0004775,2]
[377197058,1754286640270,-1000.0,0.0004775,2]
[377197060,1754286640281,-1000.0,0.0004775,2]
[377197063,1754286640292,-1000.0,0.0004775,2]
[377197065,1754286640302,-1000.0,0.0004775,2]
[377197067,1754286640313,-1000.0,0.0004775,2]
[377197069,1754286640323,-1000.0,0.0004775,2]
[377197071,1754286640334,-1000.0,0.0004775,2]
[377197073,1754286640344,-1000.0,0.0004775,2]
[377197075,1754286640354,-1000.0,0.0004775,2]
[377197077,1754286640364,-1000.0,0.0004775,2]
[377197079,1754286640374,-1000.0,0.0004775,2]
[377197081,1754286640384,-1000.0,0.0004775,2]
[377197083,1754286640394,-1000.0,0.0004775,2]
[377197085,1754286640404,-1000.0,0.0004775,2]
[377197087,1754286640414,-1000.0,0.0004775,2]
[377197089,1754286640425,-1126.3912,0.0004775,2]
[377197092,1754286640435,-150.0,0.00047751,14]
[377197094,1754286640445,-150.0,0.00047752,7]
[377197096,1754286640455,-150.0,0.00047758,14]
[377197098,1754286640465,-1000.0,0.0004776,14]
[377197100,1754286640475,-961.57677971,0.00047761,14]
[377197102,1754286640486,-150.0,0.00047761,7]
[377197104,1754286640497,-150.0,0.00047771,7]
[377197106,1754286640507,-150.0,0.00047774,7]
[377197109,1754286640520,-1000.0,0.00047776,14]
[377197111,1754286640532,-150.0,0.00047777,7]
[377197113,1754286640543,-150.0,0.00047779,7]
[377197115,1754286640553,-150.0,0.00047786,7]
[377197117,1754286640565,-150.0,0.0004779,7]
[377197119,1754286640576,-2500.0,0.0004779,2]
[377197122,1754286640587,-1000.0,0.0004779,2]
[377197124,1754286640597,-150.0,0.00047791,7]
[377197126,1754286640608,-150.0,0.00047791,14]
[377197128,1754286640619,-150.0,0.00047796,7]
[377197130,1754286640629,-150.0,0.00047796,7]
[377197132,1754286640640,-150.0,0.00047798,7]
[377197134,1754286640650,-2787.0511046,0.00047799,20]
[377197136,1754286640661,-963.22546012,0.000478,30]
[377197138,1754286640671,-10000.0,0.000478,120]
[377197141,1754286640683,-150.0,0.000478,7]
[377197143,1754286640694,-845.0,0.000478,30]
[377197145,1754286640704,-21014.3546,0.000478,120]
[377197147,1754286640715,-300.0,0.000478,17]
[377197149,1754286640726,-476.0,0.000478,30]
[377197151,1754286640736,-170.18768608,0.000478,15]
[377197153,1754286640746,-215.97349907,0.000478,15]
[377197156,1754286640757,-150.0,0.00047805,7]
[377197159,1754286640767,-150.0,0.00047805,7]
[377197162,1754286640778,-150.0,0.00047807,14]
[377197165,1754286640788,-150.0,0.00047808,7]
[377197168,1754286640798,-150.0,0.0004781,7]
[377197171,1754286640808,-215.97349907,0.00047811,15]
[377197175,1754286640819,-150.0,0.00047812,7]
[377197178,1754286640828,-150.0,0.00047812,7]
[377197181,1754286640839,-150.0,0.00047812,7]
[377197184,1754286640849,-150.0,0.00047812,7]
[377197186,1754286640859,-150.0,0.00047813,7]
[377197188,1754286640870,-150.0,0.00047815,7]
[377197190,1754286640881,-150.0,0.00047816,7]
[377197192,1754286640891,-150.0,0.00047818,7]
[377197194,1754286640902,-150.0,0.00047822,14]
[377197196,1754286640912,-215.97349907,0.00047822,15]
[377197199,1754286640923,-150.0,0.00047823,7]
[377197201,1754286640933,-150.0,0.0004783,7]
[377197203,1754286640943,-150.0,0.00047831,7]
[377197206,1754286640965,-150.0,0.00047832,7]
[377197208,1754286640975,-215.97349907,0.00047833,15]
[377197210,1754286640986,-150.0,0.00047834,7]
[377197212,1754286640996,-150.0,0.00047835,7]
[377197215,1754286641007,-150.0,0.00047836,14]
[377197217,1754286641017,-150.0,0.00047838,7]
[377197219,1754286641028,-150.0,0.00047838,7]
[377197221,1754286641039,-150.0,0.00047839,7]
[377197223,1754286641049,-150.0,0.00047844,7]
[377197225,1754286641060,-215.97349907,0.00047844,15]
[377197228,1754286641079,-150.0,0.0004785,7]
[377197230,1754286641090,-150.0,0.0004785,7]
[377197232,1754286641101,-150.0,0.0004785,7]
[377197235,1754286641112,-150.0,0.0004785,7]
[377197237,1754286641122,-150.0,0.00047852,7]
[377197239,1754286641133,-150.0,0.00047852,7]
[377197241,1754286641144,-1000.0,0.00047852,14]
[377197243,1754286641156,-150.0,0.00047853,7]
[377197245,1754286641168,-215.97349907,0.00047856,15]
[377197247,1754286641178,-150.0,0.00047856,7]
[377197249,1754286641189,-666.0,0.00047858,120]
[377197251,1754286641200,-150.0,0.00047863,7]
[377197254,1754286641210,-150.0,0.00047865,7]
[377197256,1754286641220,-215.97349907,0.00047867,15]
[377197258,1754286641231,-150.0,0.00047867,7]
[377197260,1754286641241,-150.0,0.0004787,7]
[377197262,1754286641251,-150.0,0.00047872,7]
[377197264,1754286641262,-150.0,0.00047872,7]
[377197266,1754286641272,-5000.0,0.00047873,120]
[377197268,1754286641283,-150.0,0.00047873,7]
[377197270,1754286641294,-150.0,0.00047874,7]
[377197272,1754286641305,-215.97349907,0.00047878,15]
[377197274,1754286641315,-150.0,0.00047878,7]
[377197277,1754286641325,-1000.0,0.00047878,14]
[377197279,1754286641335,-150.0,0.00047879,7]
[377197281,1754286641346,-150.0,0.00047883,7]
[377197283,1754286641356,-150.0,0.00047886,7]
[377197285,1754286641366,-150.0,0.00047886,7]
[377197287,1754286641376,-150.0,0.00047886,7]
[377197289,1754286641387,-215.97349907,0.00047889,15]
[377197291,1754286641398,-150.0,0.00047889,7]
[377197293,1754286641408,-9346.3415674,0.0004789,3]
[377197295,1754286641418,-180.91,0.00047892,14]
[377197298,1754286641429,-150.0,0.00047894,7]
[377197300,1754286641439,-150.0,0.00047894,7]
[377197302,1754286641450,-150.0,0.00047895,7]
[377197304,1754286641460,-150.0,0.00047896,7]
[377197306,1754286641470,-150.0,0.00047896,7]
[377197308,1754286641480,-24820.01963729,0.00047899,120]
[377197311,1754286641499,-737.41715811,0.00047899,120]
[377197313,1754286641511,-818.19185811,0.00047899,120]
[377197316,1754286641523,-289.61391546,0.00047899,120]
[377197318,1754286641536,-7741.8,0.00047899,120]
[377197320,1754286641549,-54480.95743103,0.00047899,120]
[377197322,1754286641559,-156.35768454,0.00047899,30]
[377197324,1754286641569,-12114.33926147,0.000479,2]
[377197455,1754286642894,-150.0,0.00028397,3]
[377197458,1754286642904,-300.0,0.00030637,3]
[377197460,1754286642914,-160.0,0.00045867,2]
[377197462,1754286642924,-865.0,0.0004702,2]
[377197464,1754286642934,-150.0,0.00047589,7]
[377197466,1754286642944,-150.0,0.0004765,7]
[377197468,1754286642953,-152.32674226,0.0004765,15]
[377197470,1754286642963,-150.0,0.00047683,7]
[377197472,1754286642973,-150.0,0.00047692,14]
[377197474,1754286642984,-150.0,0.00047723,7]
[377197476,1754286642993,-150.0,0.00047742,7]
[377197478,1754286643003,-150.0,0.00047743,7]
[377197480,1754286643012,-150.0,0.00047748,7]
[377197482,1754286643022,-150.0,0.00047753,7]
[377197484,1754286643032,-150.0,0.00047783,7]
[377197486,1754286643042,-150.0,0.00047789,7]
[377197488,1754286643052,-150.0,0.00047796,7]
[377197490,1754286643061,-150.0,0.00047808,7]
[377197492,1754286643072,-150.0,0.0004782,7]
[377197494,1754286643081,-150.0,0.00047848,7]
[377197496,1754286643091,-150.0,0.00047852,7]
[377197498,1754286643101,-150.0,0.00047856,7]
[377197500,1754286643111,-150.0,0.00047878,7]
[377197502,1754286643120,-150.0,0.00047878,7]
[377197504,1754286643130,-4408.18732819,0.000479,2]
[377197508,1754286643159,-1974.76729884,0.000479,2]
[377197640,1754286644504,-150.0,0.00028897,3]
[377197642,1754286644514,-300.0,0.00031137,3]
[377197644,1754286644523,-500.0,0.00047899,120]
[377197646,1754286644533,-1340.86936368,0.000479,2]
[377197664,1754286644694,-1087.34876115,0.000479,2]
[377197667,1754286644707,-13529.88638667,0.000479,2]
[377197669,1754286644717,-189842.5105,0.000479,2]
[377197671,1754286644727,-1000.0,0.000479,2]
[377197673,1754286644736,-202.18270393,0.000479,120]
[377197675,1754286644746,-1000.0,0.000479,120]
[377197677,1754286644755,-1018.2055,0.000479,120]
[377197679,1754286644765,-1000.0,0.000479,120]
[377197681,1754286644774,-1000.0,0.000479,120]
[377197683,1754286644784,-1000.0,0.000479,120]
[377197685,1754286644794,-1000.0,0.000479,120]
[377197687,1754286644804,-300.0,0.000479,17]
[377197689,1754286644814,-150.06,0.000479,120]
[377197691,1754286644824,-215.97349907,0.000479,15]
[377197693,1754286644833,-981.7945,0.000479,120]
[377197695,1754286644842,-8702.98117658,0.000479,2]
[377197697,1754286644851,-180.91,0.00047906,14]
[377197699,1754286644861,-150.0,0.00047908,7]
[377197701,1754286644870,-150.0,0.00047916,7]
[377197703,1754286644879,-150.0,0.00047921,7]
[377197705,1754286644888,-180.91,0.00047921,14]
[377197707,1754286644898,-150.0,0.00047923,7]
[377197709,1754286644907,-150.0,0.00047924,7]
[377197711,1754286644917,-150.0,0.00047926,7]
[377197713,1754286644927,-150.0,0.0004793,7]
[377197715,1754286644937,-150.0,0.00047932,7]
[377197717,1754286644950,-1869.26831348,0.00047935,4]
[377197720,1754286644963,-150.0,0.00047936,7]
[377197722,1754286644973,-150.0,0.00047936,7]
[377197724,1754286644983,-150.0,0.00047941,7]
[377197726,1754286644993,-153.24287061,0.00047943,14]
[377197728,1754286645002,-1213.0,0.00047943,14]
[377197730,1754286645011,-1213.0,0.00047943,14]
[377197732,1754286645021,-1213.0,0.00047943,14]
[377197734,1754286645031,-151.0,0.00047943,14]
[377197736,1754286645041,-1213.0,0.00047943,14]
[377197737,1754286645051,-151.0,0.00047943,14]
[377197738,1754286645060,-1213.0,0.00047943,14]
[377197739,1754286645070,-295.32244137,0.00047943,14]
[377197740,1754286645081,-1213.0,0.00047943,14]
[377197741,1754286645091,-1213.0,0.00047943,14]
[377197742,1754286645100,-1213.0,0.00047943,14]
[377197743,1754286645110,-155.0,0.00047943,14]
[377197744,1754286645119,-154.36244599,0.00047943,14]
[377197745,1754286645129,-500.0,0.00047945,120]
[377197747,1754286645138,-500.0,0.00047945,120]
[377197749,1754286645148,-500.0,0.00047945,120]
[377197751,1754286645159,-500.0,0.00047945,120]
[377197753,1754286645170,-500.0,0.00047945,120]
[377197755,1754286645180,-500.0,0.00047945,120]
[377197757,1754286645189,-500.0,0.00047945,120]
[377197759,1754286645199,-500.0,0.00047945,120]
[377197761,1754286645208,-500.0,0.00047945,120]
[377197763,1754286645217,-500.0,0.00047945,120]
[377197766,1754286645227,-500.0,0.00047945,120]
[377197768,1754286645237,-500.0,0.00047945,120]
[377197769,1754286645247,-500.0,0.00047945,120]
[377197771,1754286645256,-500.0,0.00047945,120]
[377197774,1754286645266,-500.0,0.00047945,120]
[377197775,1754286645275,-500.0,0.00047945,120]
[377197777,1754286645285,-500.0,0.00047945,120]
[377197779,1754286645294,-500.0,0.00047945,120]
[377197781,1754286645304,-500.0,0.00047945,120]
[377197783,1754286645313,-222.00415134,0.00047945,120]
[377197785,1754286645323,-593.32,0.00047945,30]
[377197787,1754286645332,-460.75,0.00047945,30]
[377197789,1754286645341,-359.08,0.00047945,30]
[377197791,1754286645351,-180.21,0.00047945,30]
[377197793,1754286645360,-300.0,0.00047945,30]
[377197795,1754286645370,-359.08,0.00047945,30]
[377197797,1754286645379,-172.88,0.00047945,30]
[377197799,1754286645389,-172.88,0.00047945,30]
[377197801,1754286645398,-359.08,0.00047945,30]
[377197803,1754286645408,-150.0,0.00047946,14]
[377197806,1754286645418,-150.0,0.00047946,7]
[377197807,1754286645428,-1000.0,0.00047947,14]
[377197809,1754286645437,-150.0,0.00047949,7]
[377197812,1754286645447,-150.0,0.0004795,7]
[377197814,1754286645456,-150.0,0.00047952,7]
[377197816,1754286645466,-5607.80494044,0.00047952,4]
[377197818,1754286645476,-9346.3415674,0.00047963,4]
[377197820,1754286645485,-150.0,0.00047964,7]
[377197822,1754286645494,-1869.26831348,0.0004797,4]
[377197824,1754286645503,-90412.0,0.00047973,120]
[377197826,1754286645513,-500.0,0.00047973,10]
[377197828,1754286645522,-500.0,0.00047973,10]
[377197830,1754286645532,-523.77296831,0.00047973,10]
[377197832,1754286645541,-500.60126646,0.00047973,10]
[377197834,1754286645550,-500.0,0.00047973,10]
[377197836,1754286645559,-162.93569328,0.00047973,10]
[377197838,1754286645569,-502.79239309,0.00047973,10]
[377197840,1754286645578,-500.27256849,0.00047973,10]
[377197842,1754286645588,-647.83634953,0.00047973,10]
[377197844,1754286645597,-500.0,0.00047973,10]
[377197845,1754286645607,-500.0,0.00047973,5]
[377197847,1754286645616,-500.0,0.00047973,2]
[377197849,1754286645626,-500.0,0.00047973,10]
[377197851,1754286645636,-509.68044894,0.00047973,10]
[377197854,1754286645646,-500.0,0.00047973,10]
[377197856,1754286645662,-505.71053135,0.00047973,10]
[377197858,1754286645671,-243.85767621,0.00047973,10]
[377197860,1754286645681,-230.19364531,0.00047973,10]
[377197862,1754286645690,-5607.80494044,0.00047979,4]
[377197864,1754286645700,-1869.26831348,0.0004798,4]
[377197866,1754286645709,-1000.0,0.00047982,14]
[377197868,1754286645718,-150.0,0.00047987,7]
[377197870,1754286645727,-13084.8781944,0.00047989,4]
[377197872,1754286645737,-9346.3415674,0.0004799,4]
[377197874,1754286645746,-1000.0,0.0004799,14]
[377197876,1754286645759,-1754.5863218,0.0004799,2]
[377197878,1754286645769,-666.0,0.00047995,120]
[377197880,1754286645778,-181.0,0.00047998,120]
[377197882,1754286645789,-1151.90158851,0.00047999,30]
[377197884,1754286645798,-1000.0,0.00047999,2]
[377197886,1754286645807,-5000.0,0.00047999,120]
[377197888,1754286645817,-151.0,0.00047999,120]
[377197890,1754286645826,-165.75960067,0.00047999,120]
[377197892,1754286645836,-151.0,0.00047999,120]
[377197894,1754286645845,-151.0,0.00047999,120]
[377197896,1754286645854,-152.51158953,0.00047999,120]
[377197898,1754286645864,-151.0,0.00047999,120]
[377197900,1754286645874,-156.587,0.00047999,120]
[377197902,1754286645883,-162.380719,0.00047999,120]
[377197904,1754286645893,-168.3888056,0.00047999,120]
[377197906,1754286645903,-276.96584476,0.00047999,120]
[377197908,1754286645912,-151.0,0.00047999,120]
[377197910,1754286645922,-154.42831121,0.00047999,120]
[377197912,1754286645931,-200.0,0.00047999,120]
[377197914,1754286645940,-274.9703533,0.00047999,120]
[377197916,1754286645950,-500.0,0.00047999,120]
[377197918,1754286645960,-207.4,0.00047999,120]
[377197920,1754286645969,-160.0,0.00047999,120]
[377197922,1754286645979,-215.0738,0.00047999,120]
[377197924,1754286645989,-500.0,0.00047999,120]
[377197927,1754286645998,-162.44807149,0.00047999,120]
[377197929,1754286646008,-223.0315306,0.00047999,120]
[377197931,1754286646018,-500.0,0.00047999,120]
[377197933,1754286646028,-500.0,0.00047999,120]
[377197935,1754286646037,-231.28369723,0.00047999,120]
[377197937,1754286646047,-3888.0,0.00047999,120]
[377197939,1754286646056,-239.84119403,0.00047999,120]
[377197941,1754286646065,-500.0,0.00047999,120]
[377197943,1754286646075,-4031.856,0.00047999,120]
[377197945,1754286646085,-248.71531821,0.00047999,120]
[377197947,1754286646095,-4181.034672,0.00047999,120]
[377197949,1754286646104,-500.0,0.00047999,120]
[377197951,1754286646113,-257.91778498,0.00047999,120]
[377197953,1754286646123,-4335.73295486,0.00047999,120]
[377197955,1754286646133,-500.0,0.00047999,120]
[377197957,1754286646142,-300.0,0.00047999,120]
[377197959,1754286646152,-500.0,0.00047999,120]
[377197961,1754286646165,-500.0,0.00047999,120]
[377197963,1754286646174,-267.46074303,0.00047999,120]
[377197965,1754286646184,-500.0,0.00047999,120]
[377197967,1754286646193,-300.0,0.00047999,120]
[377197969,1754286646202,-500.0,0.00047999,120]
[377197971,1754286646212,-4496.15507419,0.00047999,120]
[377197973,1754286646221,-500.0,0.00047999,120]
[377197975,1754286646231,-300.0,0.00047999,120]
[377197977,1754286646240,-500.0,0.00047999,120]
[377197979,1754286646250,-4662.51281194,0.00047999,120]
[377197981,1754286646260,-364.89100467,0.00047999,120]
[377197983,1754286646270,-277.35679052,0.00047999,120]
[377197985,1754286646279,-500.0,0.00047999,120]
[377197987,1754286646289,-300.0,0.00047999,120]
[377197989,1754286646298,-500.0,0.00047999,120]
[377197991,1754286646308,-4835.02578598,0.00047999,120]
[377197993,1754286646317,-500.0,0.00047999,120]
[377197995,1754286646326,-300.0,0.00047999,120]
[377197997,1754286646336,-500.0,0.00047999,120]
[377197999,1754286646346,-5013.92174006,0.00047999,120]
[377198001,1754286646361,-287.61899177,0.00047999,120]
[377198003,1754286646370,-560.61881967,0.00047999,120]
[377198005,1754286646379,-300.0,0.00047999,120]
[377198007,1754286646388,-500.0,0.00047999,120]
[377198009,1754286646398,-5199.43684444,0.00047999,120]
[377198011,1754286646407,-298.26089446,0.00047999,120]
[377198013,1754286646417,-300.0,0.00047999,120]
[377198015,1754286646426,-235.38709611,0.00047999,120]
[377198017,1754286646435,-309.29654756,0.00047999,120]
[377198019,1754286646444,-300.0,0.00047999,120]
[377198021,1754286646454,-5391.81600769,0.00047999,120]
[377198022,1754286646463,-300.0,0.00047999,120]
[377198025,1754286646472,-5591.31319997,0.00047999,120]
[377198027,1754286646482,-419.62464301,0.00047999,120]
[377198028,1754286646491,-300.0,0.00047999,120]